bitfinex/quotes_ETHUSD_20220213
["timestamp","ask_amount","ask_price","bid_price","bid_amount"]
[1644760806270,3.88011417,2943.1,2942.5,0.00975635]
[1644760806873,1.34001542,2943.2,2942.8,0.02072437]
[1644760807270,1.34001542,2943.2,2942.5,0.00975609]
[1644760807472,1.17021542,2943.2,2942.5,0.17955609]
[1644760807771,1.17021542,2943.2,2942.5,1.87827609]
[1644760808172,0.04161542,2943.2,2942.9,0.84945]
[1644760808972,0.04161542,2943.2,2943.0,1.19153637]
[1644760809172,0.04161542,2943.2,2943.1,0.84946]
[1644760809818,0.04161542,2943.2,2943.1,0.87018437]
[1644760811022,2.35,2943.1,2943.0,1.7115129]
[1644760811225,0.04161542,2943.2,2943.0,1.7115129]
[1644760811721,0.89111542,2943.2,2943.0,2.5610129]
[1644760811922,0.04161542,2943.2,2943.0,2.5610129]
[1644760812726,0.89108542,2943.2,2943.0,2.5610129]
[1644760813125,0.89108542,2943.2,2943.0,1.7115129]
[1644760813571,3.11978687,2943.1,2943.0,1.7115129]
[1644760814171,3.11978687,2943.1,2943.0,2.04101637]
[1644760814372,3.11978687,2943.1,2943.0,2.5609929]
[1644760814571,3.11978687,2943.1,2943.0,1.7115129]
[1644760814771,4.56520625,2943.1,2943.0,1.7115129]
[1644760815173,1.44541938,2943.1,2943.0,2.5610129]
[1644760816379,4.5586168,2943.1,2943.0,1.7115129]
[1644760820628,4.41918117,2943.1,2943.0,2.5610329]
[1644760822078,4.41918117,2943.1,2943.0,1.7115129]
[1644760823780,4.41918117,2943.1,2941.8,3.72443099]
[1644760823781,4.65,2943.0,2941.8,0.00337764]
[1644760823981,0.8498,2942.8,2942.5,0.00975651]
[1644760824178,6.09764731,2942.7,2942.5,0.00975651]
[1644760824384,3.50180412,2942.6,2942.5,0.00975651]
[1644760824816,4.9472235,2942.6,2942.5,0.00975651]
[1644760825015,1.1258591,2942.1,2942.0,0.84979]
[1644760826218,2.57127848,2942.1,2942.0,0.84979]
[1644760826418,2.57127848,2942.1,2942.0,0.84574648]
[1644760826819,2.57127848,2942.1,2941.9,0.00975685]
[1644760827023,1.1258591,2942.1,2941.9,0.00975685]
[1644760827420,1.1258591,2942.1,2941.8,0.00337764]
[1644760827618,1.1258591,2942.1,2941.9,0.00976432]
[1644760828024,1.1258591,2942.1,2941.9,0.85958432]
[1644760828496,1.1258591,2942.1,2941.9,0.84982]
[1644760828696,0.84981,2942.0,2941.9,0.85958432]
[1644760829296,1.1258591,2942.1,2941.9,0.85958432]
[1644760829700,1.1258591,2942.1,2941.9,0.84982]
[1644760830104,1.1258591,2942.1,2941.9,0.85958432]
[1644760830301,1.1258591,2942.1,2941.9,0.00976432]
[1644760830901,0.84987,2942.0,2941.8,0.17327764]
[1644760831102,0.84987,2942.0,2941.9,0.00975632]
[1644760831303,5.31941832,2942.0,2941.9,0.00975632]
[1644760832117,5.31941832,2942.0,2941.8,0.1699]
[1644760832520,2.97551851,2941.9,2941.8,0.18303403]
[1644760832720,0.84987,2942.0,2941.8,0.18303403]
[1644760833421,0.84987,2942.0,2941.6,0.00337764]
[1644760833626,0.84987,2942.0,2941.8,0.85959647]
[1644760834020,1.1258591,2942.1,2941.8,0.85959647]
[1644760834225,1.44579052,2942.0,2941.8,0.85959647]
[1644760834425,1.1258591,2942.1,2941.8,0.85959647]
[1644760834623,1.1258591,2942.1,2941.8,0.84984]
[1644760834826,1.1258591,2942.1,2941.8,0.8595973]
[1644760835725,1.1258591,2942.1,2941.8,0.84984]
[1644760835974,3.01655013,2942.0,2941.8,0.85959722]
[1644760836175,1.1258591,2942.1,2941.8,0.85959722]
[1644760836777,0.84983,2942.0,2941.8,0.00975722]
[1644760836977,0.84983,2942.0,2941.3,0.00337764]
[1644760837176,0.84983,2942.0,2941.8,0.00975722]
[1644760837380,1.1334,2942.2,2941.8,0.00975722]
[1644760837976,1.1334,2942.2,2941.8,0.85958722]
[1644760838177,0.84971,2942.4,2941.9,0.00337764]
[1644760838380,2.34695344,2942.3,2941.9,1.70920706]
[1644760838577,0.90127242,2942.3,2941.9,0.00975706]
[1644760838978,3.03011727,2942.2,2941.9,0.00975706]
[1644760839177,3.04667381,2942.2,2942.0,0.84973]
[1644760839377,1.75102242,2942.3,2942.0,0.84973]
[1644760839618,1.44570773,2942.2,2942.0,0.84973]
[1644760840024,0.90127242,2942.3,2942.0,0.84973]
[1644760840223,1.2097,2942.5,2942.0,0.84973]
[1644760840422,4.47018599,2942.4,2942.0,0.84973]
[1644760840622,1.44567694,2942.3,2942.0,0.84973]
[1644760840822,1.44567694,2942.3,2942.1,0.00975666]
[1644760841025,1.2097,2942.5,2942.1,0.00975666]
[1644760841026,1.2097,2942.5,2942.2,0.84974]
[1644760841225,1.445679,2942.4,2942.2,0.84974]
[1644760841426,1.445679,2942.3,2942.2,0.84974]
[1644760841624,3.00527963,2942.7,2942.2,0.84974]
[1644760841625,1.445679,2942.6,2942.2,0.84974]
[1644760842425,1.445679,2942.6,2942.2,1.69932]
[1644760842632,1.445679,2942.6,2942.3,0.84959]
[1644760843230,1.445679,2942.6,2942.3,0.85934635]
[1644760843469,3.03010728,2942.5,2942.3,0.85934635]
[1644760843669,1.445679,2942.4,2942.3,0.85934635]
[1644760844374,1.445679,2942.4,2942.3,0.84959]
[1644760845284,1.445679,2942.5,2942.3,0.84959]
[1644760845773,1.445679,2942.4,2942.3,0.84959]
[1644760846174,1.445679,2942.6,2942.3,0.84959]
[1644760846376,1.445679,2942.5,2942.3,0.84959]
[1644760846575,3.3257,2942.8,2942.3,0.84959]
[1644760846775,4.46945439,2942.7,2942.3,0.0097563]
[1644760846976,4.72485373,2942.7,2942.3,0.8594863]
[1644760847420,4.72485373,2942.7,2942.3,0.0097563]
[1644760847823,4.72485373,2942.7,2941.9,1.87269764]
[1644760848020,4.72485373,2942.7,2942.4,0.00975622]
[1644760848425,0.86936243,2942.3,2941.9,0.17317764]
[1644760848626,0.86936243,2942.3,2941.9,0.00337764]
[1644760848627,3.16213934,2942.2,2941.9,0.00337764]
[1644760848825,3.16213934,2942.2,2941.6,0.00337764]
[1644760849027,3.16213934,2942.2,2941.3,0.00337764]
[1644760849225,3.16213934,2942.2,2941.4,0.1698]
[1644760849428,0.84985,2942.2,2941.9,0.84985]
[1644760849629,0.01951243,2942.3,2942.0,0.00337764]
[1644760850029,0.01951243,2942.3,2941.5,0.00337764]
[1644760850333,0.01951243,2942.3,2941.6,0.1698]
[1644760850530,0.01951243,2942.3,2941.7,0.00337764]
[1644760850730,0.01951243,2942.3,2942.1,0.84976]
[1644760851572,0.01951243,2942.3,2941.8,0.00337764]
[1644760851774,0.86928243,2942.3,2942.0,0.84983]
[1644760852173,0.86928243,2942.3,2942.0,0.85320764]
[1644760852372,0.01951243,2942.3,2942.0,0.85320764]
[1644760852772,0.84976,2942.4,2942.0,0.8640827]
[1644760853772,0.84976,2942.4,2942.0,0.85320764]
[1644760853973,0.84976,2942.4,2942.1,0.01087497]
[1644760854172,0.84976,2942.4,2942.2,0.84975]
[1644760854823,1.01949,2942.6,2942.2,0.84975]
[1644760855025,4.5564,2942.8,2942.2,0.84975]
[1644760855224,4.5564,2942.8,2942.2,0.86062479]
[1644760855823,5.40601,2942.8,2942.2,0.86062479]
[1644760856223,5.40601,2942.8,2942.2,0.84975]
[1644760856425,0.1698,2943.0,2942.3,0.01087481]
[1644760856426,0.18067221,2943.0,2942.3,0.01087481]
[1644760856623,0.01087221,2943.0,2942.3,0.01087481]
[1644760856825,0.01087221,2943.0,2942.5,0.84949]
[1644760857526,3.17494598,2943.1,2942.6,1.16590829]
[1644760857826,0.01087269,2943.0,2942.6,1.16590829]
[1644760858230,0.01087269,2943.0,2942.7,0.84953]
[1644760858674,0.1698,2943.1,2942.7,0.84953]
[1644760858873,0.01087274,2943.0,2942.7,0.84953]
[1644760859774,0.84956,2943.0,2942.7,0.84953]
[1644760860274,0.86043274,2943.0,2942.7,0.84953]
[1644760861074,3.08779212,2942.9,2942.7,0.84953]
[1644760861473,2.99172603,2942.9,2942.7,0.84953]
[1644760861674,0.84967,2942.8,2942.3,1.71009549]
[1644760862316,0.84967,2942.8,2942.3,1.69922]
[1644760862518,0.84967,2942.8,2942.3,1.71009491]
[1644760862817,0.84967,2942.8,2942.3,0.86057491]
[1644760863423,0.84967,2942.8,2942.3,0.8497]
[1644760863620,0.84967,2942.8,2942.3,0.86057491]
[1644760864623,0.84967,2942.8,2942.3,0.8497]
[1644760864823,0.84967,2942.8,2942.3,0.86057491]
[1644760865428,0.01087231,2943.0,2942.3,0.86057491]
[1644760865872,3.21295562,2943.1,2942.3,0.8497]
[1644760866080,3.21295562,2943.1,2942.3,1.1605751]
[1644760866081,0.0108725,2943.0,2942.3,1.1605751]
[1644760866276,0.0108725,2943.0,2942.3,1.4605751]
[1644760866476,0.0108725,2943.0,2942.5,0.84951]
[1644760866878,1.44548821,2942.9,2942.5,0.84951]
[1644760867278,1.44548821,2942.8,2942.5,0.84951]
[1644760867878,1.44548821,2942.7,2942.5,0.84951]
[1644760868079,1.44548821,2942.6,2942.5,0.84951]
[1644760868682,1.44548821,2942.9,2942.5,0.84951]
[1644760868878,1.44548821,2942.8,2942.5,0.84951]
[1644760869279,1.44548821,2942.7,2942.5,0.84951]
[1644760869479,1.44548821,2942.8,2942.5,0.84951]
[1644760869720,1.44548821,2942.7,2942.5,0.84951]
[1644760870720,2.29510821,2942.7,2942.5,0.84951]
[1644760870922,1.44548821,2942.6,2942.5,0.84951]
[1644760871124,1.44548821,2942.6,2942.4,0.84969]
[1644760871527,1.69934,2942.8,2942.4,0.84969]
[1644760871528,1.44548821,2942.7,2942.4,0.84969]
[1644760871728,1.44548821,2942.6,2942.4,0.84969]
[1644760871928,1.44548821,2942.5,2942.4,0.84969]
[1644760873372,1.44548821,2942.5,2942.3,0.01087471]
[1644760873373,4.47298288,2942.5,2942.3,0.01087471]
[1644760873576,4.49873108,2942.4,2942.3,0.01087471]
[1644760873776,4.58336374,2942.4,2942.3,0.01087471]
[1644760873982,3.13787553,2942.4,2942.3,0.01087471]
[1644760874177,4.58357397,2942.4,2941.8,0.00337764]
[1644760874478,1.15374371,2942.1,2941.8,0.00337764]
[1644760874676,1.44569844,2942.0,2941.8,0.00337764]
[1644760874877,1.44569844,2942.0,2941.8,0.84986]
[1644760875477,1.69958,2942.4,2941.8,0.84986]
[1644760875677,3.35865281,2942.5,2941.9,0.00337764]
[1644760875877,1.44569516,2942.4,2942.0,0.84974]
[1644760876076,3.01643367,2942.3,2942.1,0.00337764]
[1644760876276,1.44569516,2942.2,2942.1,0.00337764]
[1644760876878,1.44569516,2942.2,2942.1,0.85311764]
[1644760877332,1.44569516,2942.2,2942.1,0.84974]
[1644760877934,4.5136,2942.6,2942.2,0.00108863]
[1644760878132,1.4456337,2942.5,2942.3,0.84965]
[1644760878334,1.4456337,2942.5,2942.3,0.85302764]
[1644760879134,4.62795153,2942.4,2942.3,0.85302764]
[1644760879338,4.62795153,2942.4,2942.3,0.86052462]
[1644760880136,1.4456337,2942.4,2942.3,0.86052462]
[1644760880337,1.4456337,2942.5,2942.3,0.84965]
[1644760881780,1.4456337,2942.5,2942.3,0.86052462]
[1644760881984,2.98278713,2942.4,2942.3,0.86052462]
[1644760882279,4.42842083,2942.4,2942.3,0.01087462]
[1644760882681,4.42842083,2942.4,2942.3,0.00337764]
[1644760882880,4.42737241,2942.4,2942.2,0.86169333]
[1644760883080,1.4456337,2942.3,2942.2,0.86169333]
[1644760883282,4.43833798,2942.3,2942.2,0.86169333]
[1644760883483,4.43833798,2942.3,2942.2,0.01196333]
[1644760883781,4.47281089,2942.3,2942.2,0.00108863]
[1644760884182,4.4432006,2942.3,2942.2,0.00108863]
[1644760884382,4.43314127,2942.3,2942.2,0.00108863]
[1644760884655,1.4456337,2942.3,2942.2,0.00108863]
[1644760884953,1.4456337,2942.3,2942.1,0.00621588]
[1644760885256,5.26882085,2942.3,2942.1,0.01087488]
[1644760885453,1.4456337,2942.2,2942.1,0.01425252]
[1644760885654,1.4456337,2942.2,2942.1,0.86059488]
[1644760886057,2.2953237,2942.4,2942.1,0.86059488]
[1644760886256,1.4456337,2942.4,2942.2,0.00337764]
[1644760886457,3.21194978,2942.5,2942.2,1.70265764]
[1644760886658,1.44565332,2942.4,2942.2,1.69928]
[1644760886856,1.44565332,2942.4,2942.2,1.70265764]
[1644760887259,2.29534332,2942.4,2942.2,1.70265764]
[1644760887455,1.44565332,2942.3,2942.2,1.70265764]
[1644760887858,4.41528117,2942.3,2942.2,1.70265764]
[1644760888058,1.44565332,2942.3,2942.2,1.70265764]
[1644760888770,4.55852559,2942.3,2942.2,1.70265764]
[1644760888970,4.55852559,2942.3,2942.2,0.00337764]
[1644760889175,1.44565332,2942.3,2942.1,0.84977]
[1644760889375,1.44565332,2942.2,2942.1,0.84977]
[1644760889577,3.33509505,2942.5,2942.2,0.00337764]
[1644760889778,1.4456736,2942.4,2942.0,0.00337764]
[1644760889976,1.4456736,2942.4,2942.2,0.00337764]
[1644760890176,1.4456736,2942.4,2942.3,0.84971]
[1644760890977,1.4456736,2942.5,2942.3,0.84971]
[1644760891782,1.4456736,2942.4,2942.3,0.84971]
[1644760892426,1.4456736,2942.8,2942.3,0.84971]
[1644760892623,0.84964,2942.6,2942.3,0.84971]
[1644760892824,4.5351733,2942.5,2942.3,0.84971]
[1644760893023,1.4456736,2942.4,2942.3,0.84971]
[1644760893327,0.84964,2942.6,2942.3,0.84971]
[1644760893328,1.4456736,2942.5,2942.3,0.84971]
[1644760894327,3.24023869,2942.4,2942.0,0.01087563]
[1644760894531,1.4456736,2942.3,2942.0,0.01425327]
[1644760894827,3.07678355,2942.2,2941.6,0.00337764]
[1644760895031,0.84984,2942.4,2941.9,0.00337764]
[1644760895032,1.4456736,2942.1,2941.9,0.00337764]
[1644760895227,0.84984,2942.4,2942.0,0.01087534]
[1644760895428,1.44568005,2942.3,2942.0,0.01087534]
[1644760895876,1.44568005,2942.3,2941.5,0.00337764]
[1644760896078,4.44123255,2942.3,2942.0,0.86063524]
[1644760896280,1.44568005,2942.2,2942.1,0.00337764]
[1644760896479,4.54460502,2942.2,2942.0,0.86063524]
[1644760896677,4.42130804,2942.1,2942.0,0.01087524]
[1644760897078,1.44568005,2942.1,2942.0,0.84978]
[1644760897580,1.44568005,2942.2,2942.0,0.84978]
[1644760897776,4.42576756,2942.1,2942.0,0.84978]
[1644760897979,1.44568005,2942.1,2942.0,0.84978]
[1644760898178,3.0965857,2942.1,2941.9,0.01087523]
[1644760898378,3.0965857,2942.1,2941.5,0.1698]
[1644760898379,1.44568005,2942.0,2941.6,0.00337626]
[1644760898578,2.29550005,2942.0,2941.9,0.01087523]
[1644760899378,1.44568005,2942.0,2941.9,0.86069523]
[1644760899621,1.44568005,2942.0,2941.9,0.84982]
[1644760900226,1.44568005,2942.1,2941.9,0.84982]
[1644760900424,1.44568005,2942.1,2942.0,0.85315626]
[1644760900624,1.44568005,2942.1,2942.0,0.84978]
[1644760902330,5.32167065,2942.1,2942.0,0.84978]
[1644760902630,5.47359841,2942.1,2941.9,0.01087523]
[1644760902830,4.70006601,2942.0,2941.9,0.01087523]
[1644760903029,4.70006601,2942.0,2941.5,0.00337626]
[1644760903229,5.55001601,2942.0,2941.5,0.00337626]
[1644760903478,5.55001601,2942.0,2941.9,0.01087532]
[1644760903692,4.10433596,2942.0,2941.9,0.01087532]
[1644760903884,2.29578976,2942.0,2941.9,0.01087532]
[1644760904383,2.29578976,2942.0,2941.5,0.00337626]
[1644760904584,1.44583976,2941.9,2941.8,0.01087541]
[1644760904985,1.44478926,2941.9,2941.8,0.01087541]
[1644760905389,1.44478926,2941.9,2941.8,0.86071541]
[1644760905585,1.44478926,2941.9,2941.8,0.84984]
[1644760906783,1.44478926,2941.9,2941.8,0.85321626]
[1644760907222,1.44478926,2941.9,2941.8,0.84984]
[1644760908825,1.44478926,2941.9,2941.7,0.86074558]
[1644760909027,2.29466926,2941.9,2941.6,0.00337626]
[1644760909227,0.84988,2941.9,2941.3,1.70314626]
[1644760909426,0.84988,2941.9,2941.7,0.01087567]
[1644760910227,0.84988,2941.9,2941.6,0.84987]
[1644760910532,0.84988,2941.9,2941.7,0.01425193]
[1644760910886,3.8998574,2941.9,2941.7,0.01425193]
[1644760911082,3.86353733,2941.9,2941.7,0.01425193]
[1644760911284,3.02991452,2941.8,2941.7,0.01087567]
[1644760911486,3.02991452,2941.8,2941.4,0.00337626]
[1644760911682,3.87997452,2941.8,2941.4,0.00337626]
[1644760911889,3.02991452,2941.8,2941.7,0.01087567]
[1644760912086,3.02991452,2941.8,2941.3,0.11014014]
[1644760912087,0.032627,2941.5,2941.3,0.11014014]
[1644760912484,0.032627,2941.5,2940.9,0.85009]
[1644760912683,1.05204577,2941.1,2940.9,0.85009]
[1644760912884,0.8501,2941.2,2940.9,0.85009]
[1644760913088,0.202527,2941.5,2940.9,0.85009]
[1644760913883,0.85003,2941.4,2940.9,0.85009]
[1644760915131,0.85004,2941.2,2940.9,0.85009]
[1644760915331,3.11646706,2941.1,2941.0,0.01087681]
[1644760916336,3.11646706,2941.1,2940.6,0.9454]
[1644760916636,3.96665706,2941.1,2940.9,0.01087699]
[1644760916836,2.96745777,2941.0,2940.9,0.01087699]
[1644760917640,2.96745777,2941.0,2940.7,0.85011]
[1644760917938,0.85012,2940.9,2940.8,0.01087716]
[1644760918397,2.96745777,2941.0,2940.8,0.01087716]
[1644760918583,3.70809405,2941.4,2940.8,1.71095716]
[1644760918782,3.70809405,2941.4,2940.8,1.70008]
[1644760918987,3.70809405,2941.4,2940.8,1.71095725]
[1644760919184,4.55816405,2941.4,2940.8,1.71095725]
[1644760919385,4.55816405,2941.4,2940.9,0.85009]
[1644760920186,4.55816405,2941.4,2941.0,0.01087681]
[1644760920585,4.55816405,2941.4,2941.1,0.85002]
[1644760921387,3.70809405,2941.4,2941.1,0.86089664]
[1644760922427,4.38809405,2941.4,2941.1,0.85002]
[1644760922628,4.38809405,2941.4,2941.1,0.86089664]
[1644760923427,2.96308553,2941.3,2941.1,0.86089664]
[1644760923631,0.85,2941.4,2941.1,0.85002]
[1644760923831,0.85,2941.4,2941.1,0.86089664]
[1644760924437,2.97427877,2941.3,2941.1,0.86089664]
[1644760924735,2.99079572,2941.3,2941.1,0.85002]
[1644760924936,0.85,2941.4,2941.1,0.86089672]
[1644760925135,2.97294721,2941.3,2941.1,0.86089672]
[1644760925335,2.97294721,2941.3,2941.1,0.01087672]
[1644760925981,0.85,2941.4,2940.8,1.70006]
[1644760926185,2.99358591,2941.3,2941.1,0.01087672]
[1644760927082,2.99358591,2941.3,2940.8,1.70006]
[1644760927281,2.99358591,2941.3,2941.1,0.85002]
[1644760927483,2.99358591,2941.3,2941.1,0.86089672]
[1644760928483,2.99358591,2941.3,2941.1,0.85002]
[1644760928686,0.85,2941.4,2941.1,0.86089672]
[1644760928881,0.85,2941.4,2941.2,0.00336408]
[1644760929081,2.9665127,2941.3,2941.2,0.00336408]
[1644760929284,2.9665127,2941.3,2941.1,0.01087672]
[1644760929725,0.85011,2941.2,2940.9,0.85343408]
[1644760929927,2.9665127,2941.3,2941.1,0.01087672]
[1644760930526,0.85,2941.4,2941.1,0.01087672]
[1644760930727,0.85,2941.4,2940.8,1.70008]
[1644760930932,2.99552631,2941.3,2940.9,0.00336408]
[1644760931132,2.99552631,2941.3,2941.1,0.01087672]
[1644760931932,2.99552631,2941.3,2940.7,0.00336408]
[1644760932134,2.99552631,2941.3,2941.1,0.01087672]
[1644760933136,2.99552631,2941.3,2941.0,0.00336408]
[1644760933382,2.99552631,2941.3,2941.1,0.01087672]
[1644760933573,0.85,2941.4,2941.1,0.01087672]
[1644760933773,1.44618253,2941.3,2941.1,0.01087672]
[1644760934180,3.01892115,2941.2,2941.1,0.01087672]
[1644760934379,4.46510368,2941.2,2941.0,0.00336408]
[1644760934578,3.13590964,2941.3,2941.0,0.00336408]
[1644760934778,1.44621696,2941.2,2940.7,0.00336408]
[1644760934978,3.85307619,2941.1,2940.7,0.00232245]
[1644760935277,0.8501,2941.1,2940.7,0.00232245]
[1644760935878,0.8501,2941.1,2940.8,0.01087725]
[1644760936078,0.8501,2941.1,2940.9,0.8501]
[1644760937126,0.8501,2941.1,2940.9,0.86097708]
[1644760938030,0.85004,2941.2,2940.9,0.8501]
[1644760938232,3.29492372,2941.5,2940.9,0.8501]
[1644760938233,0.202627,2941.5,2941.0,0.00232245]
[1644760938531,1.44618208,2941.4,2941.1,0.84996]
[1644760938731,1.44618208,2941.4,2941.2,0.00232245]
[1644760939235,2.29619208,2941.4,2941.2,0.00232245]
[1644760939432,2.29619208,2941.4,2941.2,0.013199]
[1644760939433,4.45661724,2941.3,2941.2,0.013199]
[1644760939632,1.44618208,2941.3,2941.2,0.013199]
[1644760940436,1.44618208,2941.3,2940.9,0.00232245]
[1644760940634,0.85004,2941.2,2941.1,0.01319909]
[1644760940882,1.44618208,2941.3,2941.1,0.01087664]
[1644760941077,1.44618208,2941.2,2941.1,0.01087664]
[1644760941478,1.44618208,2941.2,2941.1,0.85003]
[1644760941882,1.44618208,2941.3,2941.1,0.85003]
[1644760942181,1.44618208,2941.2,2941.0,0.01087681]
[1644760942379,1.732687,2941.5,2941.0,0.01087681]
[1644760942578,1.44619235,2941.4,2941.0,0.01087681]
[1644760942781,0.85005,2941.2,2940.9,0.00336408]
[1644760942979,1.44619235,2941.1,2941.0,0.85005]
[1644760943581,0.85005,2941.2,2941.0,0.85005]
[1644760944282,0.85005,2941.2,2941.0,0.8609269]
[1644760945224,1.44619125,2941.1,2941.0,0.85005]
[1644760945424,1.44619125,2941.1,2941.0,0.8609269]
[1644760946428,1.44619125,2941.1,2941.0,0.85005]
[1644760952828,1.44619125,2941.1,2941.0,0.80005]
[1644760955530,1.44619125,2941.1,2940.9,0.01424107]
[1644760955531,1.44619125,2941.1,2940.9,0.86433107]
[1644760955732,1.44619125,2941.1,2940.9,0.86096699]
[1644760955983,1.44619125,2941.1,2940.9,0.85009]
[1644760956187,1.44619125,2941.1,2940.9,0.86096708]
[1644760957183,1.44619125,2941.1,2940.9,0.85009]
[1644760957383,1.44619125,2941.1,2940.9,0.86096708]
[1644760958387,1.44619125,2941.1,2940.9,0.85009]
[1644760958587,1.44619125,2941.1,2940.9,0.86096708]
[1644760959493,1.44619125,2941.1,2940.9,0.85009]
[1644760959729,1.44619125,2941.1,2940.9,0.86096708]
[1644760960731,1.44619125,2941.1,2940.9,0.85009]
[1644760960932,1.44619125,2941.1,2940.9,0.86096708]
[1644760962035,1.44619125,2941.1,2940.9,0.85009]
[1644760962334,1.44619125,2941.1,2940.9,1.76121498]
[1644760962535,1.44619125,2941.1,2940.9,1.16096708]
[1644760962742,0.032627,2941.5,2941.0,0.84987]
[1644760962939,1.4461044,2941.4,2941.0,0.85323408]
[1644760963236,1.4461044,2941.4,2941.1,0.00336408]
[1644760963479,1.4461044,2941.4,2941.1,0.01087664]
[1644760963678,1.4461044,2941.4,2941.2,0.84988]
[1644760964082,1.4461044,2941.4,2941.1,0.01087664]
[1644760964486,1.4461044,2941.4,2940.8,0.00336408]
[1644760964682,1.4461044,2941.4,2941.1,0.01087664]
[1644760964883,2.2960844,2941.4,2941.1,0.86091664]
[1644760965084,1.4461044,2941.3,2941.2,0.00336408]
[1644760965287,1.4461044,2941.3,2941.1,0.01087664]
[1644760965482,1.4461044,2941.2,2941.1,0.01087664]
[1644760965682,1.4461044,2941.2,2940.7,0.00336408]
[1644760965882,0.032627,2941.5,2941.1,1.71079672]
[1644760966085,1.44611127,2941.4,2941.2,0.00336408]
[1644760967123,1.44611127,2941.4,2941.2,0.01424063]
[1644760967928,1.44611127,2941.4,2941.3,0.84994]
[1644760968724,1.44611127,2941.4,2941.2,0.01424063]
[1644760969131,1.44611127,2941.4,2941.2,0.00336408]
[1644760969325,1.44611127,2941.4,2941.0,0.85007]
[1644760969524,1.44611127,2941.4,2941.2,0.01087655]
[1644760970225,2.29619127,2941.4,2941.2,0.01087655]
[1644760970424,1.44611127,2941.3,2940.9,0.00336408]
[1644760970628,1.44611127,2941.3,2941.2,0.01087655]
[1644760971079,1.44611127,2941.3,2940.9,0.00336408]
[1644760971080,0.0217531,2941.1,2940.9,0.00336408]
[1644760971277,0.0217531,2941.1,2940.6,1.70013]
[1644760971278,1.44611127,2941.0,2940.7,0.00336408]
[1644760971678,1.44611127,2941.0,2940.8,0.85007]
[1644760972283,0.85007,2940.9,2940.7,0.00336408]
[1644760972482,0.94901808,2940.7,2940.5,0.00336408]
[1644760972682,1.44611127,2940.6,2940.5,0.85348408]
[1644760973289,1.44611127,2940.6,2940.5,0.00336408]
[1644760973290,5.11611127,2940.6,2940.5,0.00336408]
[1644760973485,5.11611127,2940.6,2940.2,0.00336408]
[1644760973684,1.61611127,2940.5,2940.2,0.00336408]
[1644760973886,1.44611127,2940.4,2940.2,0.00336408]
[1644760974389,2.29647127,2940.4,2940.2,0.0142423]
[1644760974623,1.44611127,2940.3,2940.2,0.0142423]
[1644760975025,1.44611127,2940.3,2940.2,0.01087822]
[1644760975227,1.44611127,2940.3,2940.2,0.00336408]
[1644760975425,1.44611127,2940.4,2940.1,0.86114839]
[1644760975625,1.44611127,2940.4,2940.2,0.00336408]
[1644760976030,1.44611127,2940.4,2940.1,0.01087839]
[1644760976431,2.29640127,2940.4,2940.0,0.00336408]
[1644760976630,1.44611127,2940.3,2940.1,0.01087839]
[1644760976830,1.44611127,2940.3,2940.2,0.85028]
[1644760977233,1.11901808,2940.7,2940.2,0.85364408]
[1644760977445,1.44647818,2940.6,2940.3,0.00336408]
[1644760977935,1.44647818,2940.6,2940.3,0.01424212]
[1644760978388,1.44647818,2940.6,2940.4,0.85012]
[1644760979177,1.44647818,2940.6,2940.4,0.86099795]
[1644760979976,1.44647818,2940.6,2940.4,0.85012]
[1644760980179,1.44647818,2940.6,2940.4,0.86099795]
[1644760981181,1.44647818,2940.6,2940.4,0.85012]
[1644760981381,1.44647818,2940.6,2940.4,0.86099795]
[1644760982427,1.44647818,2940.6,2940.4,0.85012]
[1644760982628,1.44647818,2940.6,2940.4,0.86099795]
[1644760983734,1.44647818,2940.6,2940.4,0.85012]
[1644760983929,1.44647818,2940.6,2940.4,0.86099795]
[1644760984829,1.44647818,2940.6,2940.4,0.85012]
[1644760985029,1.44647818,2940.6,2940.4,0.86099795]
[1644760985632,4.3269,2940.9,2940.4,0.86099795]
[1644760985894,1.44634958,2940.8,2940.5,0.00336408]
[1644760986088,1.44634958,2941.0,2940.6,0.85]
[1644760986289,0.0217531,2941.1,2940.7,0.00336408]
[1644760986489,0.0217531,2941.1,2940.7,0.85326408]
[1644760986686,0.0217531,2941.1,2940.8,0.00336408]
[1644760987485,0.0217531,2941.1,2940.8,1.71403124]
[1644760988290,0.0217531,2941.1,2940.8,2.71403124]
[1644760988491,0.0217531,2941.1,2940.9,1.14989]
[1644760988691,0.0217531,2941.1,2941.0,1.69983]
[1644760988894,1.46790489,2941.1,2941.0,1.69983]
[1644760989291,0.0217531,2941.1,2941.0,1.69983]
[1644760991637,0.0217531,2941.1,2941.0,1.99983]
[1644760991839,0.0217531,2941.1,2941.0,3.29983]
[1644760992037,0.0217531,2941.1,2941.0,2.29983]
[1644760992240,0.0217531,2941.1,2941.0,3.29983]
[1644760994284,0.0217531,2941.1,2941.0,1.69983]
[1644760994683,0.02085745,2941.1,2941.0,1.69983]
[1644760994883,0.02085745,2941.1,2941.0,1.99983]
[1644760995083,0.02085745,2941.1,2941.0,1.69983]
[1644761003788,0.02085745,2941.1,2941.0,3.29983]
[1644761004190,0.02085745,2941.1,2941.0,3.64703]
[1644761005032,0.02085745,2941.1,2941.0,3.81703]
[1644761006037,0.02085745,2941.1,2941.0,3.51703]
[1644761006436,0.02085745,2941.1,2941.0,2.51703]
[1644761006636,0.02085745,2941.1,2941.0,3.51703]
[1644761007039,0.02085745,2941.1,2941.0,2.51703]
[1644761007237,0.02085745,2941.1,2941.0,2.64703]
[1644761007437,0.02085745,2941.1,2941.0,3.64703]
[1644761008038,0.02085745,2941.1,2941.0,3.34703]
[1644761008237,0.02085745,2941.1,2941.0,2.04703]
[1644761008680,0.02085745,2941.1,2941.0,2.34703]
[1644761008883,0.02085745,2941.1,2941.0,2.04703]
[1644761011686,0.02085745,2941.1,2941.0,2.04553894]
[1644761015743,0.02085745,2941.1,2941.0,1.69983]
[1644761017684,0.00348445,2941.5,2941.0,1.69983]
[1644761018487,0.00348445,2941.5,2941.0,2.54973]
[1644761018686,0.00348445,2941.5,2941.1,0.86012299]
[1644761019732,0.00348445,2941.5,2941.1,0.84983]
[1644761019937,0.00348445,2941.5,2941.1,1.70996308]
[1644761020134,0.00348445,2941.5,2941.2,0.84979]
[1644761021836,0.00348445,2941.5,2941.4,0.8498]
[1644761023038,0.00348445,2941.5,2941.4,2.01992473]
[1644761023481,0.00348445,2941.5,2941.4,3.31992473]
[1644761028738,0.00348445,2941.5,2941.4,2.01992473]
[1644761029342,0.00348445,2941.5,2941.4,3.31992473]
[1644761029543,0.00348445,2941.5,2941.4,3.48972473]
[1644761030642,0.00348445,2941.5,2941.4,8.48972473]
[1644761030892,0.04115878,2942.1,2941.6,5.49946]